[Event "SixDays Budapest January-IMB 2023"]
[Site "Budapest"]
[Date "2023.01.23"]
[Round "1.1"]
[White "Farkas, Gabor"]
[Black "Daroczi, Donat"]
[Result "1-0"]
[ECO "C00"]
[WhiteElo "2321"]
[BlackElo "2148"]
[Annotator "TA"]
[PlyCount "89"]
[EventDate "2023.01.23"]
[EventType "tourn"]
[EventCountry "HUN"]
[SourceTitle "playchess.com"]
[Source "ChessBase"]
[SourceQuality "1"]
[TimeControl "5400+30"]

{[%evp 15,89,-10,6,-2,36,-23,8,-43,-9,0,15,0,14,13,10,13,22,10,23,-3,0,-1,7,-14,0,-3,0,0,9,5,19,15,25,8,13,21,31,17,14,10,17,-14,-6,-28,-18,-5,-11,-8,-17,-21,-18,-26,-28,-48,0,0,0,0,48,0,12,16,25,44,693,693,677,700,697,672,691,687,674,672,647,639]} 1. e4 {[%emt 0:00:03]} e6 {[%emt 0:00:06]} 2. d3 {[%emt 0:00:10]} c5 {[%emt 0:00:07]} 3. g3 {[%emt 0:00:25]} Nc6 {[%emt 0:00:29]} 4. Bg2 {[%emt 0:00:07]} d5 {[%emt 0:02:21]} 5. Nd2 Nf6 {[%emt 0:01:25]} 6. Ngf3 {[%emt 0:06:44]} Bd6 {[%emt 0:11:35]} 7. O-O {[%emt 0:00:18]} O-O {[%emt 0:00:13]} 8. Re1 {[%emt 0:01:45]} Bc7 {[%emt 0:02:26]} 9. c3 {[%emt 0:06:00] A08: King's Indian Attack.} e5 {[%emt 0:12:56]} 10. Qc2 {[%emt 0:06:53] [#]} (10. exd5 $14 Nxd5 11. Nb3) 10... h6 $146 {[%emt 0:06:28]} ({Predecessor:} 10... d4 11. a4 b6 12. Nc4 Ne8 13. cxd4 Nxd4 14. Nxd4 Qxd4 15. Be3 Qd7 16. Bd2 Bb7 {0-1 Murin,J (2184)-Palla,A (1974) Budapest-chT1 Lilienthal 1213 2012 (6)}) 11. Nb3 {[%emt 0:06:08]} (11. exd5 $11 Nxd5 12. a3) 11... dxe4 {[%emt 0:03:09]} 12. dxe4 {[%emt 0:00:29]} Qe7 {[%emt 0:04:14]} 13. Be3 {[%emt 0:03:15]} b6 {[%emt 0:00:09]} 14. Nh4 {[%emt 0:01:08]} Rd8 {[%emt 0:06:05]} 15. Rad1 {[%emt 0:04:03]} Be6 {[%emt 0:02:08]} 16. Nf5 {[%emt 0:01:35]} Qf8 {[%emt 0:00:11]} 17. Bc1 {[%emt 0:09:50]} Ne7 {[%emt 0:04:38]} 18. Ne3 {[%emt 0:01:42]} Rxd1 {[%emt 0:07:08]} 19. Qxd1 {[%emt 0:00:34]} Rd8 {[%emt 0:00:24]} 20. Qe2 {[%emt 0:00:09]} Qe8 {[%emt 0:01:27]} 21. Qa6 {[%emt 0:03:10] Repels Qa4} Bb8 {[%emt 0:02:31]} 22. Nd2 {[%emt 0:02:05]} Qd7 {[%emt 0:06:38]} 23. Bf1 {[%emt 0:05:22]} Qc8 {[%emt 0:03:37]} 24. Qa4 {[%emt 0:01:05]} g6 {[%emt 0:02:29]} 25. Ba6 {[%emt 0:03:30]} Qc6 {[%emt 0:01:29]} 26. Bb5 {[%emt 0:01:41]} Qb7 {[%emt 0:00:01]} 27. f3 {[%emt 0:01:51]} Kg7 {[%emt 0:00:47]} 28. Ndc4 {[%emt 0:03:15]} Bc8 {[%emt 0:01:04] White must now prevent ...a6.} 29. Nd2 {[%emt 0:02:39]} a6 {[%emt 0:00:36]} 30. Bf1 {[%emt 0:00:07]} b5 {[%emt 0:00:14]} 31. Qc2 {[%emt 0:00:02]} Be6 {[%emt 0:01:02]} 32. Nb3 {[%emt 0:02:16]} Ba7 {[%emt 0:01:27]} 33. c4 $1 {[%emt 0:02:27]} Nc6 {[%emt 0:02:26]} 34. Nd5 {[%emt 0:07:14]} (34. cxb5 Nd4 35. Nxd4 cxd4 36. bxa6 Qb8 $17) 34... Nd4 {[%emt 0:03:03]} (34... bxc4 $15 35. Qd2 g5) 35. Nxd4 $40 {[%emt 0:00:39][%mdl 128] White has some attack.} cxd4 {[%emt 0:00:16]} 36. Qd2 {[%emt 0:01:10]} ({Don't blunder} 36. Bxh6+ $2 Kxh6 37. Kg2 Kg7 38. Nxf6 Kxf6 $19) 36... Ng8 {[%emt 0:02:11]} (36... Rh8 $11 37. b3 bxc4 38. bxc4 Nd7) 37. Kh1 {[%emt 0:03:22]} (37. b3 $14) 37... bxc4 {[%emt 0:02:46]} 38. Bxc4 {[%emt 0:00:16]} f5 {[%emt 0:00:39]} 39. Qa5 {[%emt 0:01:28]} Rd6 {[%emt 0:04:33][%mdl 8192] [#] Loses the game.} (39... Bxd5 $14 40. Bxd5 Qb6) 40. Nc7 $1 $18 {[%emt 0:00:16][%mdl 64] Discovered Attack, Double Attack. White is clearly winning.} Bxc4 {[%emt 0:04:26]} 41. Ne8+ {[%emt 0:00:36]} ({Not} 41. Qxe5+ Rf6 42. Ne8+ Kf7 $16) 41... Kh7 {[%emt 0:00:19]} 42. Nxd6 {[%emt 0:00:22]} Qc6 {[%emt 0:00:12]} 43. Nxc4 {[%emt 0:02:51]} Qxc4 {[%emt 0:00:07]} 44. Qxe5 {[%emt 0:01:24]} fxe4 {[%emt 0:00:43]} 45. Qxe4 {[%emt 0:00:33] Weighted Error Value: White=0.11 (very precise) /Black=0.29 (precise)} 1-0

[Event "SixDays Budapest January-IMB 2023"]
[Site "Budapest"]
[Date "2023.01.23"]
[Round "1.2"]
[White "Semprun Martinez, Fernando"]
[Black "Jakab, Attila"]
[Result "0-1"]
[ECO "E16"]
[WhiteElo "2106"]
[BlackElo "2308"]
[Annotator "TA"]
[PlyCount "56"]
[EventDate "2023.01.23"]
[EventType "tourn"]
[EventCountry "HUN"]
[SourceTitle "playchess.com"]
[Source "ChessBase"]
[SourceQuality "1"]
[TimeControl "5400+30"]

{[%evp 16,56,2,-20,8,-37,-27,-26,-24,-30,-8,-81,-81,-86,-86,-87,-93,-76,-41,-41,-41,-126,-115,-118,-122,-114,-122,-115,-100,-93,-103,-358,-99,-400,-413,-334,-349,-304,-285,-554,-554,-526,-525]} 1. d4 {[%emt 0:00:03]} Nf6 {[%emt 0:01:22]} 2. c4 {[%emt 0:00:01]} e6 {[%emt 0:00:05]} 3. Nf3 {[%emt 0:00:09]} Bb4+ {[%emt 0:00:06]} 4. Bd2 {[%emt 0:00:04]} Qe7 {[%emt 0:00:04]} 5. a3 {[%emt 0:04:11]} Bxd2+ {[%emt 0:00:07]} 6. Nbxd2 {[%emt 0:00:17]} d6 {[%emt 0:00:08]} 7. e4 {[%emt 0:07:33]} e5 {[%emt 0:00:58]} 8. d5 {[%emt 0:00:26]} a5 {[%emt 0:00:10]} 9. b4 {[%emt 0:03:21]} Na6 {[%emt 0:00:47] E11: Bogo-Indian.} 10. Rb1 {[%emt 0:01:16]} ({Much worse is} 10. bxa5 Nc5 11. Qc2 Bd7 $17) 10... O-O {[%emt 0:00:25]} 11. Bd3 {[%emt 0:07:06]} axb4 {[%emt 0:02:17] Black has an edge.} 12. axb4 {[%emt 0:00:05]} c5 {[%emt 0:00:14] [#]} 13. bxc5 $146 {[%emt 0:08:34]} (13. dxc6 $11 bxc6 14. O-O) ({Predecessor:} 13. dxc6 bxc6 14. O-O c5 15. b5 Nb4 16. Nb3 Ra3 17. Qe2 Bb7 18. Nfd2 Rfa8 19. Ra1 {½-½ Vesecky,M (2083)-Kulhanek,T (2375) Ricany op-A 2011 (6)}) 13... Nxc5 $17 {[%emt 0:02:42]} 14. Bc2 {[%emt 0:00:35]} Bg4 {[%emt 0:00:40]} 15. h3 {[%emt 0:02:06]} Bh5 {[%emt 0:00:29]} 16. O-O {[%emt 0:03:22]} Ra2 {[%emt 0:00:13]} 17. Re1 {[%emt 0:06:37]} Rfa8 {[%emt 0:06:41]} 18. g4 {[%emt 0:06:03]} ({Better is} 18. Re3 $15) 18... Bg6 {[%emt 0:02:06]} 19. Nh4 {[%emt 0:01:59]} R8a3 {[%emt 0:00:38]} 20. Nxg6 {[%emt 0:11:06]} hxg6 {[%emt 0:00:13]} 21. Nb3 {[%emt 0:01:38]} Nfd7 {[%emt 0:01:33] aiming for ...Qh4. Black is much more active. A dynamic duo of knights.} 22. Re3 {[%emt 0:00:32]} Qh4 {[%emt 0:02:01] ...Nf6 would be deadly.} (22... Na6 {simplifies} 23. Bd3 Ndc5 24. Nc1 Ra1) 23. Kg2 $2 {[%emt 0:08:21][%mdl 8192] [#]} (23. Qc1 $17 {only move.}) 23... Nxb3 $2 {[%emt 0:02:54]} (23... f5 $1 $19 {and Black stays clearly on top. Hoping for ...Nxe4.} 24. exf5 gxf5) 24. Rexb3 $4 {[%emt 0:03:45][%mdl 8192] [#]} (24. Rbxb3 $17 Ra4 25. Rec3) 24... Nc5 $1 $19 {[%emt 0:00:27]} 25. Rxa3 {[%emt 0:04:19]} Rxa3 {[%emt 0:00:06]} 26. f3 {[%emt 0:00:31] White is weak on the dark squares} Qg5 {[%emt 0:00:59] ...Qe3 is the strong threat.} ({Inferior is} 26... Ra2 27. Ra1 Rb2 28. Rb1 Rxb1 29. Qxb1 $15) 27. Qc1 {[%emt 0:01:46]} (27. Qe1) 27... Qxc1 {[%emt 0:00:23]} 28. Rxc1 {[%emt 0:00:01]} Rc3 {Weighted Error Value: White=0.57/Black=0.20 (precise)} 0-1

[Event "SixDays Budapest January-IMB 2023"]
[Site "Budapest"]
[Date "2023.01.23"]
[Round "1.3"]
[White "Urhegyi, Marton"]
[Black "Papp, Levente"]
[Result "0-1"]
[ECO "C03"]
[WhiteElo "2253"]
[BlackElo "2391"]
[Annotator "TA"]
[PlyCount "60"]
[EventDate "2023.01.23"]
[EventType "tourn"]
[EventCountry "HUN"]
[SourceTitle "playchess.com"]
[Source "ChessBase"]
[SourceQuality "1"]
[TimeControl "5400+30"]

{[%evp 9,60,39,36,18,15,7,14,14,23,22,24,27,18,14,25,25,21,0,23,-1,-14,-18,-5,-16,0,-77,-70,-77,-52,-48,0,0,0,0,0,0,0,-12,0,-141,-142,-235,-278,-355,-166,-163,-194,-185,-162,-29992,-29993,-29994,-403]} 1. e4 {[%emt 0:00:04]} e6 {[%emt 0:00:24]} 2. d4 {[%emt 0:00:14]} d5 {[%emt 0:00:18]} 3. Nd2 {[%emt 0:00:26]} h6 {[%emt 0:00:35]} 4. Ngf3 {[%emt 0:00:41]} Nf6 {[%emt 0:00:14]} 5. e5 {[%emt 0:01:24]} Nfd7 {[%emt 0:00:12]} 6. Bd3 {[%emt 0:00:08] C03: French Tarrasch: Unusual Black 3rd moves.} c5 {[%emt 0:00:06]} 7. c3 {[%emt 0:00:10]} Nc6 {[%emt 0:00:07]} 8. O-O {[%emt 0:00:21] The position is equal.} g5 {[%emt 0:00:29]} 9. b3 {[%emt 0:00:57]} g4 {[%emt 0:17:26]} 10. Ne1 {[%emt 0:00:22]} cxd4 {[%emt 0:00:09]} 11. cxd4 {[%emt 0:00:05]} Nxd4 {[%emt 0:00:26]} 12. Qxg4 {[%emt 0:00:47]} Nc6 {[%emt 0:00:39]} 13. Bb2 {[%emt 0:06:46]} Ndxe5 {[%emt 0:10:33] [#]} 14. Qh5 $146 {[%emt 0:16:03][%mdl 2048] White puts up resistance} (14. Qe2 $5 {[%cal Rb2e5]} Bd6 15. g3 $11) ({Predecessor:} 14. Qe2 d4 15. f4 Nxd3 16. Nxd3 Be7 17. Nf3 Qd5 18. Rad1 Bd7 19. Nfe5 Bf6 20. Nxd7 Qxd7 {0-1 Kamber,B (2284)-Antipov,M (2626) Biel MTO op 51st 2018 (1)}) 14... Bg7 {[%emt 0:06:15] Black wants to play ...Qg5.} 15. f4 {[%emt 0:09:56] [#] Prevents Qg5} Nf3+ {[%emt 0:07:29][%mdl 64] Discovered Attack} 16. Nexf3 {[%emt 0:03:53]} (16. Ndxf3 Bxb2) 16... Bxb2 {[%emt 0:00:08]} 17. Ne5 {[%emt 0:06:34]} Rf8 $17 {[%emt 0:06:35]} 18. Rae1 {[%emt 0:24:36]} Nxe5 {[%emt 0:03:27]} 19. fxe5 {[%emt 0:00:52][%cal Of1f7]} Qb6+ {[%emt 0:03:11]} (19... Bd7 $15) 20. Kh1 $11 {[%emt 0:00:40][%cal Of1f7] And now Rxf7! would win.} Bd7 $1 {[%emt 0:00:08][%cal Bc8d7,Bd7b5,Bb5f1,Bf1g2][%mdl 32]} 21. Nf3 {[%emt 0:04:45]} O-O-O {[%emt 0:03:21]} 22. Qxh6 {[%emt 0:02:34][%cal Ob3b4]} Kb8 {[%emt 0:02:37]} 23. Ng5 {[%emt 0:04:11]} Qd4 {[%emt 0:06:25]} 24. Bb1 {[%emt 0:02:15]} (24. Rxf7 Ba3 25. Qh7 (25. Nxe6 $2 Bxe6 26. Qxe6 Qxd3 $19) 25... Bc8 $15) (24. Rd1 $11 {keeps the balance.}) 24... Bb5 $17 {[%emt 0:08:40] This pair of bishops is nice.} 25. Nxe6 {[%emt 0:10:13]} (25. Rxf7 $2 Rxf7 26. Nxf7 Qf2 $19) (25. Rd1 $17 Bxf1 26. Rxd4 Bxd4 27. Nf3) 25... Qb6 $19 {[%emt 0:01:35][%mdl 64] Pin} 26. Qd2 {[%emt 0:00:46]} fxe6 {[%emt 0:09:25]} ({Less strong is} 26... Qxe6 27. Rf6 (27. Qxb2 $2 {loses.} Bxf1 28. Rxf1 d4 $19) 27... Bxe5 28. Rxe6 fxe6 29. Bd3 $14 (29. Rxe5 $2 Rf1#)) (26... Bxf1 $142 27. Nxd8 (27. Qxb2 $2 {is the wrong capture.} fxe6 28. Qd2 Rf2 $19) (27. Nxf8 $2 Bc3 $19 {[%mdl 64] Skewer}) 27... Bc3 {[%mdl 64] Deflection} 28. Qxc3 Qf2 29. Nc6+ Ka8) 27. Rxf8 {[%emt 0:00:04]} Rxf8 {[%emt 0:00:08]} 28. Qxb2 {[%emt 0:00:02] [#]} Bf1 $1 {[%emt 0:01:04] ( -> ...Rf2)} 29. Qc3 $2 {[%emt 0:03:54]} (29. Qd2 $19) 29... Qf2 {[%emt 0:01:34][%csl Gf2][%cal Rf1g2]} 30. Qg3 {[%emt 0:01:07] [#]} Bxg2+ $1 {[%mdl 512] Weighted Error Value: White=0.50/Black=0.12 (very precise)} 0-1

[Event "SixDays Budapest January-IMB 2023"]
[Site "Budapest"]
[Date "2023.01.23"]
[Round "1.4"]
[White "La Barbera, Manfredi"]
[Black "To, Nhat Minh"]
[Result "0-1"]
[ECO "B90"]
[WhiteElo "1961"]
[BlackElo "2335"]
[Annotator "TA"]
[PlyCount "110"]
[EventDate "2023.01.23"]
[EventType "tourn"]
[EventCountry "HUN"]
[SourceTitle "playchess.com"]
[Source "ChessBase"]
[SourceQuality "1"]
[TimeControl "5400+30"]

{[%evp 15,110,7,22,23,29,22,25,19,10,12,22,16,22,12,18,0,6,0,30,0,0,10,0,-22,-21,-18,0,0,0,0,0,-8,-8,-8,0,0,0,-111,-102,-98,-80,-80,-80,-222,-80,-80,-31,-80,-29,-80,-80,-82,-84,-97,-87,-141,-147,-161,-159,-183,-181,-183,-175,-158,-164,-195,-187,-247,-189,-181,-141,-140,-130,-180,-179,-166,-140,-195,-195,-187,-68,-186,-184,-228,-181,-246,-259,-241,-227,-217,-210,-382,-374,-380,-333,-427,-428]} 1. e4 {[%emt 0:00:04]} c5 {[%emt 0:00:07]} 2. Nf3 {[%emt 0:00:31]} d6 {[%emt 0:00:03]} 3. d4 {[%emt 0:00:38]} cxd4 {[%emt 0:00:03]} 4. Nxd4 {[%emt 0:00:28]} Nf6 {[%emt 0:00:03]} 5. Nc3 {[%emt 0:00:39]} a6 {[%emt 0:00:03]} 6. Be3 {[%emt 0:00:55]} e5 {[%emt 0:00:08]} 7. Nb3 {[%emt 0:00:10]} Be6 {[%emt 0:00:06]} 8. f3 {[%emt 0:02:50]} h5 {[%emt 0:00:14]} 9. Nd5 {[%emt 0:03:57] B90: Sicilian Najdorf: Unusual White 6th moves, 6 Be3 Ng4 and 6 Be3 e5.} Bxd5 {[%emt 0:00:20]} 10. exd5 {[%emt 0:00:12]} Nbd7 {[%emt 0:00:08]} 11. Qd2 {[%emt 0:07:55] White has an edge.} g6 {[%emt 0:01:07]} 12. Be2 {[%emt 0:08:01]} Bg7 {[%emt 0:00:07]} 13. O-O {[%emt 0:07:34] 13.0-0-0 gains popularity.} O-O {[%emt 0:00:06]} 14. c4 {[%emt 0:01:08]} b6 {[%emt 0:01:07] Against Na5} 15. a4 {[%emt 0:05:27]} a5 {[%emt 0:00:20]} 16. Kh1 {[%emt 0:23:15]} Nc5 {[%emt 0:00:46] [#]} 17. Ra3 $146 ({Predecessor:} 17. Nxc5 bxc5 18. Bd1 Rb8 19. b3 e4 20. Bc2 Re8 21. Rae1 exf3 22. gxf3 Rb7 23. Bf2 {0-1 Bilych,O (2365)-Deac,B (2683) Titled Tuesday intern op 21st Jun Late blitz 2022 (3)}) 17... Nfd7 {[%emt 0:06:33]} 18. Nxc5 {[%emt 0:06:48]} Nxc5 {[%emt 0:00:32]} 19. b4 {[%emt 0:03:55]} axb4 {[%emt 0:01:43]} 20. Qxb4 {[%emt 0:00:03]} Qc7 {[%emt 0:01:50]} 21. Rb1 {[%emt 0:06:47]} Ra6 {[%emt 0:00:37]} 22. Bd1 {[%emt 0:02:15]} Rfa8 {[%emt 0:02:09]} 23. Qb5 {[%emt 0:00:38]} Qd8 {[%emt 0:06:50]} 24. Bc2 {[%emt 0:01:04]} Bf6 {[%emt 0:04:05]} 25. h3 {[%emt 0:00:18]} Bg5 {[%emt 0:01:26]} 26. Qc6 {[%emt 0:02:00]} (26. Bf2 $11 {remains equal.}) 26... Bxe3 $17 {[%emt 0:01:33]} 27. Rxe3 {[%emt 0:00:02]} Kg7 {[%emt 0:07:10]} 28. Ra3 {[%emt 0:03:16]} R8a7 {[%emt 0:01:38][%cal Ob6b5] Threatens to win with ...b5!} 29. Ra2 {[%emt 0:00:51]} (29. Qb5 $17) 29... Rc7 {[%emt 0:09:58]} (29... b5 $1 $19 {has better winning chances.} 30. Qxb5 Rb7 31. Qxb7 Nxb7 32. Rxb7 Qc8) 30. Qb5 {[%emt 0:00:11]} Qa8 {[%emt 0:02:14]} (30... Qh4 $17) 31. Rba1 {[%emt 0:02:08]} (31. f4 $15) 31... Rca7 {[%emt 0:03:03]} ({Black should try} 31... Qh8 $17) 32. Qb4 {[%emt 0:00:26]} (32. f4 $11 {keeps the balance.}) 32... Qd8 {[%emt 0:00:42]} 33. Qc3 {[%emt 0:01:06]} Qh4 {[%emt 0:01:02]} 34. Kg1 {[%emt 0:03:19] White is weak on the dark squares} Ra5 {[%emt 0:01:29]} 35. Ra3 {[%emt 0:02:04]} (35. Kh2 $142) 35... Rc7 {[%emt 0:00:58] Black is more active.} 36. Rb1 {[%emt 0:01:12]} Nd7 {[%emt 0:01:45]} 37. Bd3 {[%emt 0:00:28]} Rxd5 $1 {[%emt 0:01:31][%mdl 64] Pin} 38. Bf1 {[%emt 0:03:24]} Qd4+ {[%emt 0:01:08]} 39. Qxd4 {[%emt 0:01:31]} Rxd4 {[%emt 0:00:02]} 40. Rb5 {[%emt 0:00:33]} Ra7 {[%emt 0:04:31]} 41. Rd5 {[%emt 0:01:54]} (41. Kf2 $142) 41... Rxd5 {[%emt 0:05:19]} 42. cxd5 $19 {[%emt 0:00:02][%mdl 4096] Endgame KRB-KRN} Nf6 {[%emt 0:00:07]} 43. Bb5 {[%emt 0:01:02]} Kf8 {[%emt 0:02:50]} ({Weaker is} 43... Nxd5 44. Rd3 Nc7 45. Rxd6 $17) 44. Bc6 {[%emt 0:00:10] [#]} (44. Kf2 $17 {might work better.}) 44... Ra5 $1 {[%emt 0:00:47]} 45. Rd3 {[%emt 0:01:03]} Ke7 {[%emt 0:00:28]} 46. g4 {[%emt 0:00:09]} (46. Bb5 $17 {is the only way for White.}) 46... hxg4 {[%emt 0:11:26]} 47. hxg4 {[%emt 0:00:01] [#]} g5 {[%emt 0:00:06]} (47... Rc5 $1 $19 48. Kf2 Kd8) 48. Kf2 {[%emt 0:00:31]} (48. Bb5 $1 $15) 48... Rc5 {[%emt 0:02:11]} 49. Ke3 {[%emt 0:00:43]} Kd8 {[%emt 0:00:45][%cal Oe5e4]} 50. Rd1 {[%emt 0:00:49]} (50. Kd2 $142) 50... Rc3+ {[%emt 0:00:45]} 51. Ke2 {[%emt 0:00:08]} e4 {[%emt 0:04:58]} 52. fxe4 {[%emt 0:00:15][%cal Oe4e5]} Nxg4 {[%emt 0:00:01]} ({Stronger than} 52... Nxe4 53. Rd4 Nf6 54. Kf2) 53. Rg1 $2 {[%emt 0:01:01]} (53. Rb1) 53... Re3+ {[%emt 0:01:18]} 54. Kd2 {[%emt 0:00:18]} Rxe4 {[%emt 0:00:01]} 55. Rb1 {[%emt 0:01:05]} Ne5 {[%emt 0:06:41] Weighted Error Value: White=0.29 (precise) /Black=0.14 (very precise)} 0-1

[Event "SixDays Budapest January-IMB 2023"]
[Site "Budapest"]
[Date "2023.01.23"]
[Round "1.5"]
[White "Gatineau, Yovann"]
[Black "Apol, Luitjen Akselsson"]
[Result "1-0"]
[ECO "B51"]
[WhiteElo "2354"]
[BlackElo "2215"]
[Annotator "TA"]
[PlyCount "59"]
[EventDate "2023.01.23"]
[EventType "tourn"]
[EventCountry "HUN"]
[SourceTitle "playchess.com"]
[Source "ChessBase"]
[SourceQuality "1"]
[TimeControl "5400+30"]

{[%evp 9,59,15,10,10,30,26,38,0,0,0,37,27,24,18,31,33,34,25,36,36,49,22,44,25,34,16,31,48,44,41,39,9,71,-36,-22,-23,-18,-22,10,0,22,31,41,43,89,97,88,28,178,107,93,97]} 1. e4 {[%emt 0:02:36]} c5 {[%emt 0:00:31]} 2. Nf3 {[%emt 0:00:08]} d6 {[%emt 0:00:35]} 3. Bb5+ {[%emt 0:00:08]} Nd7 {[%emt 0:00:36]} 4. a4 {[%emt 0:00:08]} Ngf6 {[%emt 0:02:04]} 5. Nc3 {[%emt 0:00:10]} a6 {[%emt 0:03:23]} 6. Be2 {[%emt 0:01:47] B51: Sicilian: Moscow Variation (3 Bb5+) without 3...Bd7.} g6 {[%emt 0:03:04]} 7. O-O {[%emt 0:01:03]} Bg7 {[%emt 0:00:10]} 8. d4 {[%emt 0:01:39] White is slightly better.} cxd4 $1 {[%emt 0:00:30]} 9. Nxd4 {[%emt 0:00:06]} Nc5 {[%emt 0:04:42]} 10. Bf3 {[%emt 0:01:11]} O-O {[%emt 0:01:54][%cal Oc8g4]} 11. a5 {[%emt 0:00:28]} Bd7 {[%emt 0:10:02]} 12. Be3 {[%emt 0:01:34]} Rc8 {[%emt 0:01:38]} 13. h3 {[%emt 0:04:09] [#]} Qc7 $146 {[%emt 0:06:38]} ({Predecessor:} 13... Re8 14. g4 h5 15. Nb3 hxg4 16. hxg4 Nh7 17. Nd5 Bb5 18. Nxc5 dxc5 19. Be2 Bxb2 20. Rb1 Bd4 21. Bxb5 axb5 22. Rxb5 e6 23. Nb6 Bxe3 24. Qxd8 Bxf2+ {½-½ Vlachos,A (2430)-David,A (2521) Aegean op 44th 2021 (9)}) 14. Qd2 {[%emt 0:03:47]} Rfd8 {[%emt 0:08:49]} 15. Rfd1 {[%emt 0:02:51]} Qb8 {[%emt 0:09:32]} 16. Rac1 {[%emt 0:04:36]} b5 {[%emt 0:06:56]} 17. b4 {[%emt 0:08:47]} Ne6 {[%emt 0:02:57]} 18. Nde2 {[%emt 0:03:44]} Bc6 {[%emt 0:12:01]} 19. Nd5 {[%emt 0:04:27]} Re8 {[%emt 0:00:45]} 20. Ng3 {[%emt 0:14:39]} Nf8 {[%emt 0:03:35]} (20... Qb7 $11) 21. h4 {[%emt 0:07:32] White is much more active. The black rooks are badly placed.} (21. Nb6 $16) 21... N8d7 {[%emt 0:04:31]} 22. Nxf6+ {[%emt 0:06:02]} Bxf6 {[%emt 0:05:43]} 23. h5 {[%emt 0:00:14]} Bb7 {[%emt 0:01:51]} 24. Bd4 {[%emt 0:02:42] Against Bc3} Ne5 {[%emt 0:02:57]} 25. Be2 {[%emt 0:00:41]} Qa8 {[%emt 0:00:19]} 26. Qe3 {[%emt 0:02:21]} Nd7 {[%emt 0:06:24]} (26... Rc6 $14) 27. Bg4 $16 {[%emt 0:09:17]} e6 {[%emt 0:01:18]} 28. h6 {[%emt 0:03:23]} (28. Bxf6 $16 Nxf6 29. Qg5 Nxg4 30. Qxg4) 28... Rc4 {[%emt 0:00:33] [#]} (28... Be7 $11) 29. Be2 {[%emt 0:01:11]} (29. Bxf6 $1 $18 Nxf6 30. Be2) 29... Rxd4 {[%emt 0:00:31]} (29... Rxb4 $2 30. Bxf6 d5 31. Ra1 $18) 30. Rxd4 {[%emt 0:00:04] Weighted Error Value: White=0.17 (very precise) /Black=0.23 (precise)} 1-0

[Event "SixDays Budapest January-IMB 2023"]
[Site "Budapest"]
[Date "2023.01.24"]
[Round "2.1"]
[White "Daroczi, Donat"]
[Black "Apol, Luitjen Akselsson"]
[Result "1-0"]
[ECO "B94"]
[WhiteElo "2148"]
[BlackElo "2215"]
[Annotator "TA"]
[PlyCount "59"]
[EventDate "2023.01.23"]
[EventType "tourn"]
[EventCountry "HUN"]
[SourceTitle "playchess.com"]
[Source "ChessBase"]
[SourceQuality "1"]
[TimeControl "5400+30"]

{[%evp 11,59,16,17,17,38,56,50,54,48,27,49,42,53,36,43,42,77,-12,-11,-14,2,8,13,20,39,41,69,70,58,60,20,0,263,277,266,273,808,808,775,810,807,675,697,651,1211,1196,1123,539,1013,580]} 1. e4 {[%emt 0:00:10]} c5 {[%emt 0:00:19]} 2. Nf3 {[%emt 0:00:26]} d6 {[%emt 0:00:13]} 3. d4 {[%emt 0:00:09]} cxd4 {[%emt 0:00:07]} 4. Nxd4 {[%emt 0:00:03]} Nf6 {[%emt 0:00:16]} 5. Nc3 {[%emt 0:00:06]} a6 {[%emt 0:00:15]} 6. Bg5 {[%emt 0:00:07]} Nbd7 {[%emt 0:00:20]} 7. Qe2 {[%emt 0:00:15] B94: Sicilian Najdorf: 6 Bg5 Nbd7.} Qa5 {[%emt 0:00:15]} 8. Bd2 {[%emt 0:00:20]} g6 {[%emt 0:00:26] is the legacy move (8...Qb6).} 9. g4 {[%emt 0:00:13][%cal Bg2g4,Bg4g5][%mdl 32] White is slightly better.} Bg7 {[%emt 0:00:27]} 10. Nb3 {[%emt 0:00:13]} Qd8 {[%emt 0:00:38]} 11. f4 {[%emt 0:04:27] [#] Against Ne5} Nb6 $146 {[%emt 0:14:49]} ({Predecessor:} 11... O-O 12. O-O-O a5 13. h3 a4 14. Nd4 Nc5 15. Be1 a3 16. b3 Ne6 17. Nxe6 Bxe6 {½-½ Blazejova Vasic,J (2225)-Zalcik,V (2244) SVK-ch25 sf1 email 2020}) 12. g5 {[%emt 0:07:38]} Nh5 {[%emt 0:04:56]} 13. O-O-O {[%emt 0:00:26]} a5 {[%emt 0:02:48][%cal Ba6a5,Ba5a4,Ba4a3][%mdl 32] [#] Hoping for ...a4.} 14. Qe3 {[%emt 0:12:12]} (14. Qf2 $1 $16) 14... a4 $11 {[%emt 0:03:15]} 15. Nd4 {[%emt 0:00:34]} (15. Bb5+ Bd7 16. Nd4 a3 17. Bxd7+ Nxd7 $15) 15... a3 {[%emt 0:07:31] White must now prevent ...axb2+.} (15... Nxf4 $5 16. Ndb5 Nh5 $15) 16. b3 {[%emt 0:09:59]} (16. Bb5+ Bd7 17. Bxd7+ Nxd7 $17) 16... Nxf4 {[%emt 0:01:50][%cal Oe8g8][%mdl 64] Deflection} 17. Ndb5 {[%emt 0:00:40]} Be5 {[%emt 0:09:37]} 18. Qf2 {[%emt 0:08:59][%mdl 1024] White has compensation.} Ne6 {[%emt 0:02:40]} 19. Be3 {[%emt 0:00:16] White is more active.} Nd7 {[%emt 0:01:51]} 20. Nd5 {[%emt 0:00:59]} O-O {[%emt 0:03:35]} 21. h4 {[%cal Bh2h4,Bh4h5][%mdl 32] h5 would be deadly.} Bg7 $2 {[%emt 0:14:12][%mdl 8192]} (21... h5 $1 $11) 22. h5 $18 {[%emt 0:11:29]} Ne5 {[%emt 0:01:45]} 23. Qh4 {[%emt 0:09:02]} Re8 $2 {[%emt 0:02:41]} ({Not} 23... Nf3 24. Qg3 Ne5 25. Be2 $18) (23... h6 24. gxh6 Bf6 25. Nxf6+ exf6) 24. hxg6 {[%emt 0:01:06] White is clearly winning.} hxg6 {[%emt 0:00:09]} 25. Bb6 {[%emt 0:04:20]} Qd7 {[%emt 0:00:02]} 26. Nbc7 {[%emt 0:00:55]} Nxc7 {[%emt 0:21:28]} 27. Nxc7 {[%emt 0:00:08]} ({Inferior is} 27. Bxc7 Kf8 $11) 27... Nc6 {[%emt 0:00:42]} 28. Nxe8 {[%emt 0:04:17]} Qxe8 {[%emt 0:00:15]} 29. Qh7+ {[%emt 0:00:08]} Kf8 {[%emt 0:00:04] [#]} 30. Qh8+ $3 {[%emt 0:00:11][%mdl 576] Skewer. Ingenious play by Daroczi!   Weighted Error Value: White=0.13 (very precise) /Black=0.25 (precise)} 1-0